fUSD/lending_fUSD_20260516
["ID","MTS","AMOUNT","RATE_DAILY","PERIOD"]
[422394910,1778927439000,-172.81799297,0.000149,2]
[422394896,1778927439000,-500.0,0.00014896,2]
[422394889,1778927439000,-500.0,0.00014896,2]
[422394882,1778927439000,-500.0,0.00014896,2]
[422394886,1778927439000,-500.0,0.00014896,2]
[422394865,1778927439000,-500.0,0.00014896,2]
[422394859,1778927439000,-500.0,0.00014896,2]
[422394857,1778927439000,-500.0,0.00014896,2]
[422394866,1778927439000,-500.0,0.00014896,2]
[422394858,1778927439000,-500.0,0.00014896,2]
[422394862,1778927439000,-500.0,0.00014896,2]
[422394860,1778927439000,-500.0,0.00014896,2]
[422394864,1778927439000,-500.0,0.00014896,2]
[422394863,1778927439000,-500.0,0.00014896,2]
[422394861,1778927439000,-500.0,0.00014896,2]
[422394868,1778927439000,-500.0,0.00014896,2]
[422394867,1778927439000,-500.0,0.00014896,2]
[422394874,1778927439000,-500.0,0.00014896,2]
[422394871,1778927439000,-500.0,0.00014896,2]
[422394879,1778927439000,-500.0,0.00014896,2]
[422394878,1778927439000,-500.0,0.00014896,2]
[422394870,1778927439000,-500.0,0.00014896,2]
[422394875,1778927439000,-500.0,0.00014896,2]
[422394877,1778927439000,-500.0,0.00014896,2]
[422394869,1778927439000,-500.0,0.00014896,2]
[422394873,1778927439000,-500.0,0.00014896,2]
[422394876,1778927439000,-500.0,0.00014896,2]
[422394872,1778927439000,-500.0,0.00014896,2]
[422394880,1778927439000,-500.0,0.00014896,2]
[422394883,1778927439000,-500.0,0.00014896,2]
[422394916,1778927439000,-1244.78645993,0.00014904,2]
[422394885,1778927439000,-500.0,0.00014896,2]
[422394888,1778927439000,-500.0,0.00014896,2]
[422394912,1778927439000,-405.10977948,0.000149,2]
[422394913,1778927439000,-577.22585125,0.000149,2]
[422394914,1778927439000,-2983.14833294,0.000149,2]
[422394948,1778927439000,-500.0,0.00014999,2]
[422394944,1778927439000,-500.0,0.00014999,2]
[422394952,1778927439000,-621.13564933,0.00014999,2]
[422394946,1778927439000,-500.0,0.00014999,2]
[422394950,1778927439000,-500.0,0.00014999,2]
[422394907,1778927439000,-869.0,0.000149,5]
[422394947,1778927439000,-500.0,0.00014999,2]
[422394958,1778927439000,-500.0,0.00014999,2]
[422394957,1778927439000,-500.0,0.00014999,2]
[422394959,1778927439000,-500.0,0.00014999,2]
[422394962,1778927439000,-352.0203254,0.00014999,2]
[422394963,1778927439000,-833.0,0.00015,5]
[422394967,1778927439000,-1540.0,0.00015,2]
[422394968,1778927439000,-1540.0,0.00015,2]
[422394961,1778927439000,-300.0,0.00014999,2]
[422394960,1778927439000,-500.0,0.00014999,2]
[422394964,1778927439000,-1540.0,0.00015,2]
[422394966,1778927439000,-1540.0,0.00015,2]
[422394965,1778927439000,-1540.0,0.00015,2]
[422394970,1778927439000,-1684.50576064,0.00015,2]
[422394974,1778927439000,-1540.0,0.00015,2]
[422394971,1778927439000,-1540.0,0.00015,2]
[422394973,1778927439000,-1540.0,0.00015,2]
[422394972,1778927439000,-1540.0,0.00015,2]
[422394969,1778927439000,-1540.0,0.00015,2]
[422394976,1778927439000,-1605153.99581964,0.00015,2]
[422394975,1778927439000,-1540.0,0.00015,2]
[422394954,1778927439000,-171.491,0.00014999,2]
[422394949,1778927439000,-500.0,0.00014999,2]
[422394953,1778927439000,-1647.883,0.00014999,2]
[422394956,1778927439000,-500.0,0.00014999,2]
[422394931,1778927439000,-500.0,0.00014999,2]
[422394919,1778927439000,-166.0,0.00014936,2]
[422394929,1778927439000,-1529.1053358,0.00014997,2]
[422394918,1778927439000,-196.650267,0.00014936,2]
[422394930,1778927439000,-28446.9476003,0.00014997,2]
[422394921,1778927439000,-166.93728157,0.00014986,2]
[422394951,1778927439000,-500.0,0.00014999,2]
[422394920,1778927439000,-6037.57508182,0.00014973,2]
[422394924,1778927439000,-150.0,0.00014986,2]
[422394925,1778927439000,-165.0,0.00014994,2]
[422394923,1778927439000,-150.0,0.00014986,2]
[422394927,1778927439000,-151.0,0.00014997,2]
[422394928,1778927439000,-78750.604252,0.00014997,2]
[422394922,1778927439000,-150.0,0.00014986,2]
[422394935,1778927439000,-452.82205503,0.00014999,2]
[422394934,1778927439000,-199.53926711,0.00014999,2]
[422394936,1778927439000,-500.0,0.00014999,2]
[422394933,1778927439000,-187.7150481,0.00014999,2]
[422394939,1778927439000,-500.0,0.00014999,2]
[422394937,1778927439000,-500.0,0.00014999,2]
[422394943,1778927439000,-500.0,0.00014999,2]
[422394938,1778927439000,-500.0,0.00014999,2]
[422394940,1778927439000,-368.24171202,0.00014999,2]
[422394941,1778927439000,-500.0,0.00014999,2]
[422394942,1778927439000,-500.0,0.00014999,2]
[422394945,1778927439000,-500.0,0.00014999,2]
[422394955,1778927439000,-500.0,0.00014999,2]
[422394932,1778927439000,-500.0,0.00014999,2]
[422394977,1778927440000,-226.283531,0.00014599,2]
[422394979,1778927440000,-549.56085653,0.000147,2]
[422394980,1778927440000,-327.27649884,0.000147,2]
[422394981,1778927440000,-2035.42862203,0.00015,2]
[422394982,1778927440000,-2503.79919704,0.00015,2]
[422394978,1778927440000,-292.567063,0.00014599,2]
[422394991,1778927442000,-24843.04348952,0.00015,2]
[422394992,1778927442000,-270.6809728,0.00015,2]
[422394990,1778927442000,-122536.30090246,0.00015,2]
[422394989,1778927442000,-1181.08452605,0.0001499,2]
[422394988,1778927442000,-4872.91547395,0.0001499,2]
[422394987,1778927442000,-1555.159325,0.00015,2]
[422394993,1778927443000,-21617.15303388,0.00015,2]
[422394996,1778927445000,-6253.395,0.00014797,2]
[422394997,1778927445000,-570.06717777,0.00014797,2]
[422394999,1778927445000,-7133.72542854,0.00015,2]
[422395000,1778927445000,-3699.5096,0.00015,2]
[422394998,1778927445000,-54576.87545323,0.00015,2]
[422395021,1778927501000,197.59,7.122e-05,2]
[422395023,1778927502000,197.59,7.842e-05,2]
[422395024,1778927502000,197.59,8.202e-05,2]
[422395022,1778927502000,197.59,7.482e-05,2]
[422395028,1778927503000,197.59,9.643e-05,2]
[422395026,1778927503000,197.59,8.922e-05,2]
[422395027,1778927503000,197.59,9.282e-05,2]
[422395025,1778927503000,197.59,8.562e-05,2]
[422395030,1778927533000,771.0,0.00030136,120]
[422395031,1778927585000,151.0,0.0003,120]
[422395032,1778927619000,151.0,0.0003,120]
[422395033,1778927636000,151.0,0.0003,120]
[422395034,1778927649000,151.0,0.0003,120]
[422395035,1778927695000,151.0,0.0003,120]
[422395036,1778927711000,151.0,0.0003,120]
[422395037,1778927725000,151.0,0.0003,120]
[422395038,1778927737000,151.0,0.0003,120]
[422395039,1778927749000,151.0,0.0003,120]
[422395040,1778927771000,151.0,0.0003,120]
[422395041,1778927786000,183.39458404,0.00027439,120]
[422395042,1778927788000,151.0,0.0003,120]
[422395043,1778927799000,151.0,0.0003,120]
[422395044,1778927811000,151.0,0.0003,120]
[422395045,1778927837000,151.0,0.0003,120]
[422395046,1778927854000,151.0,0.0003,120]
[422395047,1778927903000,412.07742384,0.00030137,120]
[422395048,1778927983000,14030.0,0.00030136,120]
[422395068,1778928199000,-675.31,0.00013004,2]
[422395069,1778928199000,-235.33,0.00013041,2]
[422395070,1778928199000,-253.84,0.00013079,2]
[422395067,1778928199000,-2000.0,0.00012999,2]
[422395066,1778928199000,-366.13,0.00012988,2]
[422395065,1778928199000,-111360.28,0.00012959,2]
[422395063,1778928199000,-20000.0,0.0001276,2]
[422395064,1778928199000,-197.59,0.00012884,2]
[422395062,1778928199000,-2215.72,0.00012579,2]
[422395061,1778928199000,-197.59,0.00012524,2]
[422395060,1778928199000,-197.59,0.00012164,2]
[422395057,1778928199000,-197.59,0.00011803,2]
[422395058,1778928199000,-160.0,0.0001185,2]
[422395055,1778928199000,-197.59,0.00011083,2]
[422395056,1778928199000,-197.59,0.00011443,2]
[422395054,1778928199000,-250.0,0.00011003,2]
[422395053,1778928199000,-197.59,0.00010723,2]
[422395052,1778928199000,-162.8,0.00010635,2]
[422395051,1778928199000,-197.59,0.00010363,2]
[422395059,1778928199000,-215.03962261,0.00011855,2]
[422395071,1778928199000,-197.59,0.00013244,2]
[422395050,1778928199000,-197.59,0.00010003,2]
[422395075,1778928199000,-197.59,0.00013604,2]
[422395072,1778928199000,-163.89,0.000133,2]
[422395093,1778928199000,-500.0,0.00014249,2]
[422395094,1778928199000,-679.87148587,0.0001425,2]
[422395091,1778928199000,-500.0,0.00014249,2]
[422395092,1778928199000,-500.0,0.00014249,2]
[422395090,1778928199000,-500.0,0.00014249,2]
[422395088,1778928199000,-500.0,0.00014249,2]
[422395086,1778928199000,-201.07769934,0.00014249,2]
[422395087,1778928199000,-500.0,0.00014249,2]
[422395085,1778928199000,-500.0,0.00014249,2]
[422395089,1778928199000,-500.0,0.00014249,2]
[422395084,1778928199000,-166.66,0.00014233,2]
[422395083,1778928199000,-853.1559,0.0001415,2]
[422395074,1778928199000,-166.66,0.00013491,2]
[422395076,1778928199000,-366.13,0.00013637,2]
[422395079,1778928199000,-366.13,0.00013962,2]
[422395077,1778928199000,-200.0,0.00013699,2]
[422395073,1778928199000,-366.13,0.00013312,2]
[422395080,1778928199000,-197.59,0.00013964,2]
[422395082,1778928199000,-33171.8854,0.0001415,2]
[422395081,1778928199000,-1200.0,0.00014148,2]
[422395078,1778928199000,-150.0,0.00013699,2]
[422395108,1778928200000,-2229.02256964,0.00014796,2]
[422395116,1778928200000,-209.0,0.00014876,2]
[422395115,1778928200000,-295.0,0.00014876,2]
[422395114,1778928200000,-10000.0,0.0001485,2]
[422395113,1778928200000,-255.0,0.00014822,2]
[422395111,1778928200000,-500.0,0.00014818,2]
[422395112,1778928200000,-500.0,0.00014818,2]
[422395110,1778928200000,-501.34591019,0.00014818,2]
[422395109,1778928200000,-500.0,0.00014818,2]
[422395107,1778928200000,-2500.0,0.0001479,2]
[422395095,1778928200000,-366.13,0.00014286,2]
[422395106,1778928200000,-43819.18173898,0.00014778,2]
[422395104,1778928200000,-2000.0,0.00014624,2]
[422395102,1778928200000,-455.0,0.000146,2]
[422395103,1778928200000,-226.49,0.000146,2]
[422395101,1778928200000,-152.0,0.00014528,7]
[422395100,1778928200000,-503.40654584,0.00014528,7]
[422395098,1778928200000,-152.0,0.00014489,7]
[422395099,1778928200000,-1214.45,0.00014497,2]
[422395097,1778928200000,-500.0,0.00014389,2]
[422395096,1778928200000,-163.0,0.0001436,2]
[422395105,1778928200000,-720.6277,0.0001472,2]
[422395117,1778928200000,-251.0,0.00014876,2]
[422395121,1778928200000,-107753.0853,0.0001489,2]
[422395119,1778928200000,-160.37975332,0.00014887,2]
[422395142,1778928200000,-500.0,0.00014984,2]
[422395118,1778928200000,-1545.14842999,0.00014887,2]
[422395139,1778928200000,-193.9447139,0.0001496,2]
[422395140,1778928200000,-166.66,0.00014975,2]
[422395138,1778928200000,-1880.0,0.00014959,2]
[422395136,1778928200000,-167.0,0.0001492,2]
[422395135,1778928200000,-577.22585125,0.000149,2]
[422395134,1778928200000,-226.83301235,0.000149,2]
[422395137,1778928200000,-20785.82145877,0.00014955,2]
[422395133,1778928200000,-405.10977948,0.000149,2]
[422395132,1778928200000,-5000.0,0.000149,2]
[422395141,1778928200000,-500.0,0.00014984,2]
[422395130,1778928200000,-500.0,0.00014896,2]
[422395131,1778928200000,-210.41445728,0.000149,2]
[422395122,1778928200000,-502.495938,0.00014896,2]
[422395123,1778928200000,-500.0,0.00014896,2]
[422395124,1778928200000,-500.0,0.00014896,2]
[422395120,1778928200000,-1500.0,0.00014887,2]
[422395126,1778928200000,-500.0,0.00014896,2]
[422395127,1778928200000,-500.0,0.00014896,2]
[422395128,1778928200000,-500.0,0.00014896,2]
[422395129,1778928200000,-500.0,0.00014896,2]
[422395125,1778928200000,-500.0,0.00014896,2]
[422395153,1778928201000,-500.0,0.00014986,2]
[422395159,1778928201000,-500.0,0.00014986,2]
[422395157,1778928201000,-500.0,0.00014986,2]
[422395158,1778928201000,-375.90631823,0.00014986,2]
[422395156,1778928201000,-500.0,0.00014986,2]
[422395155,1778928201000,-500.0,0.00014986,2]
[422395152,1778928201000,-500.0,0.00014986,2]
[422395154,1778928201000,-500.0,0.00014986,2]
[422395146,1778928201000,-500.0,0.00014986,2]
[422395149,1778928201000,-500.0,0.00014986,2]
[422395148,1778928201000,-500.0,0.00014986,2]
[422395150,1778928201000,-500.0,0.00014986,2]
[422395147,1778928201000,-500.0,0.00014986,2]
[422395145,1778928201000,-500.0,0.00014986,2]
[422395144,1778928201000,-329.0,0.00014985,2]
[422395143,1778928201000,-508.38766567,0.00014984,2]
[422395161,1778928201000,-500.0,0.00014986,2]
[422395151,1778928201000,-500.0,0.00014986,2]
[422395160,1778928201000,-500.0,0.00014986,2]
[422395170,1778928201000,-500.0,0.00014986,2]
[422395163,1778928201000,-500.0,0.00014986,2]
[422395179,1778928201000,-500.0,0.00014986,2]
[422395181,1778928201000,-500.0,0.00014986,2]
[422395178,1778928201000,-500.0,0.00014986,2]
[422395177,1778928201000,-500.0,0.00014986,2]
[422395176,1778928201000,-500.0,0.00014986,2]
[422395175,1778928201000,-500.0,0.00014986,2]
[422395173,1778928201000,-500.0,0.00014986,2]
[422395174,1778928201000,-500.0,0.00014986,2]
[422395162,1778928201000,-500.0,0.00014986,2]
[422395171,1778928201000,-500.0,0.00014986,2]
[422395168,1778928201000,-500.0,0.00014986,2]
[422395180,1778928201000,-500.0,0.00014986,2]
[422395169,1778928201000,-500.0,0.00014986,2]
[422395167,1778928201000,-500.0,0.00014986,2]
[422395166,1778928201000,-500.0,0.00014986,2]
[422395165,1778928201000,-500.0,0.00014986,2]
[422395164,1778928201000,-500.0,0.00014986,2]
[422395172,1778928201000,-500.0,0.00014986,2]
[422395192,1778928202000,-500.0,0.00014986,2]
[422395190,1778928202000,-500.0,0.00014986,2]
[422395187,1778928202000,-500.0,0.00014986,2]
[422395189,1778928202000,-500.0,0.00014986,2]
[422395183,1778928202000,-500.0,0.00014986,2]
[422395186,1778928202000,-500.0,0.00014986,2]
[422395185,1778928202000,-500.0,0.00014986,2]
[422395193,1778928202000,-500.0,0.00014986,2]
[422395184,1778928202000,-500.0,0.00014986,2]
[422395182,1778928202000,-500.0,0.00014986,2]
[422395188,1778928202000,-500.0,0.00014986,2]
[422395194,1778928202000,-500.0,0.00014986,2]
[422395191,1778928202000,-500.0,0.00014986,2]
[422395197,1778928202000,-500.0,0.00014986,2]
[422395195,1778928202000,-250.0,0.00014986,2]
[422395198,1778928202000,-500.0,0.00014986,2]
[422395200,1778928202000,-500.0,0.00014986,2]
[422395201,1778928202000,-500.0,0.00014986,2]
[422395199,1778928202000,-500.0,0.00014986,2]
[422395202,1778928202000,-500.0,0.00014986,2]
[422395204,1778928202000,-500.0,0.00014986,2]
[422395203,1778928202000,-500.0,0.00014986,2]
[422395205,1778928202000,-500.0,0.00014986,2]
[422395206,1778928202000,-500.0,0.00014986,2]
[422395207,1778928202000,-916.0,0.00014987,5]
[422395208,1778928202000,-71216.81274929,0.00014987,2]
[422395196,1778928202000,-500.0,0.00014986,2]
[422395209,1778928209000,-200.0,0.0001488,2]
[422395210,1778928209000,-4800.0,0.00014887,2]
[422395214,1778928253000,150.35,9.536e-05,2]
[422395213,1778928253000,150.35,8.765e-05,2]
[422395212,1778928253000,150.35,7.994e-05,2]
[422395211,1778928253000,150.35,7.223e-05,2]
[422395215,1778928305000,1000.0,0.0003013,120]
[422395216,1778928306000,1000.0,0.0003013,120]
[422395217,1778928307000,1000.0,0.0003013,120]
[422395218,1778928329000,1291.0,0.0003013,120]
[422395220,1778928418000,-52.32165612,0.00010307,2]
[422395219,1778928418000,-196.0,0.00010204,2]
[422395223,1778928531000,-98.02834388,0.00010307,2]
[422395224,1778928531000,-150.35,0.00011078,2]
[422395226,1778928531000,-150.35,0.00011849,2]
[422395227,1778928531000,-197.49330147,0.0001227,2]
[422395230,1778928531000,-2203.99583117,0.000134,2]
[422395228,1778928531000,-150.35,0.0001262,2]
[422395229,1778928531000,-150.35,0.00013391,2]
[422395225,1778928531000,-196.0,0.00011686,2]
[422395234,1778928542000,-7747.30583117,0.00013612,2]
[422395233,1778928542000,-300.0,0.00013611,2]
[422395232,1778928542000,-1844.69,0.00013571,2]
[422395231,1778928542000,-108.00416883,0.000134,2]
[422395235,1778928549000,-8237.85416883,0.00013612,2]
[422395236,1778928549000,-166.66,0.00013699,2]
[422395237,1778928559000,569.11864888,0.00013538,2]
[422395238,1778928561000,-1026.36718229,0.00013702,2]
[422395240,1778928570000,-261.25,0.00013712,2]
[422395242,1778928570000,-2500.0,0.00013721,2]
[422395241,1778928570000,-2500.0,0.00013721,2]
[422395245,1778928570000,-300.0,0.00013721,2]
[422395239,1778928570000,-1383.91281771,0.00013702,2]
[422395243,1778928570000,-1051.30647447,0.00013721,2]
[422395244,1778928570000,-300.0,0.00013721,2]
[422395248,1778928570000,-302.57,0.00013773,2]
[422395246,1778928570000,-300.0,0.00013721,2]
[422395247,1778928570000,-300.0,0.00013721,2]
[422395249,1778928576000,176.71868439,0.00013621,2]
[422395250,1778928577000,624.24202343,0.00013608,2]
[422395251,1778928594000,429.93872964,0.0003,120]
[422395252,1778928603000,222.0,0.00029041,120]
[422395296,1778928632000,-176.71868439,0.00014211,2]
[422395306,1778928632000,-150.0,0.00014692,2]
[422395298,1778928632000,-166.66,0.00014418,2]
[422395299,1778928632000,-500.0,0.00014421,2]
[422395302,1778928632000,-166.66,0.00014598,2]
[422395300,1778928632000,-350.0,0.00014458,2]
[422395301,1778928632000,-200.0,0.000145,5]
[422395309,1778928632000,-1200.0,0.00014739,2]
[422395303,1778928632000,-500.0,0.000146,5]
[422395307,1778928632000,-167.0,0.00014695,2]
[422395312,1778928632000,-176.71868439,0.000148,2]
[422395311,1778928632000,-23643.1156,0.0001479,2]
[422395314,1778928632000,-227.0,0.00014856,2]
[422395310,1778928632000,-300.0,0.00014789,2]
[422395304,1778928632000,-29420.9634,0.00014689,2]
[422395297,1778928632000,-166.66,0.00014238,2]
[422395283,1778928632000,-155.3,0.00013749,2]
[422395305,1778928632000,-226.24,0.00014692,2]
[422395313,1778928632000,-1100.0,0.000148,5]
[422395280,1778928632000,-590.20797657,0.00013608,2]
[422395282,1778928632000,-300.0,0.00013743,2]
[422395292,1778928632000,-160.14,0.00013983,2]
[422395281,1778928632000,-2500.0,0.00013743,2]
[422395293,1778928632000,-166.66,0.00014058,2]
[422395294,1778928632000,-2000.0,0.0001415,2]
[422395285,1778928632000,-2500.0,0.00013863,2]
[422395286,1778928632000,-2500.0,0.00013863,2]
[422395287,1778928632000,-300.0,0.00013863,2]
[422395284,1778928632000,-716.39457918,0.00013797,2]
[422395290,1778928632000,-160.0,0.00013894,2]
[422395289,1778928632000,-166.66,0.00013878,2]
[422395295,1778928632000,-150.35,0.00014162,2]
[422395288,1778928632000,-303.24806139,0.00013863,2]
[422395308,1778928632000,-800.0,0.000147,5]
[422395291,1778928632000,-1000.0,0.00013957,2]
[422395317,1778928632000,-3995.10716045,0.00014887,2]
[422395336,1778928632000,-2500.0,0.00014973,2]
[422395347,1778928632000,-500.0,0.00014986,2]
[422395335,1778928632000,-600.0,0.00014969,2]
[422395339,1778928632000,-500.0,0.00014984,2]
[422395340,1778928632000,-500.0,0.00014984,2]
[422395337,1778928632000,-300.0,0.00014973,2]
[422395334,1778928632000,-300.0,0.00014969,2]
[422395338,1778928632000,-507.39599137,0.00014984,2]
[422395342,1778928632000,-500.0,0.00014986,2]
[422395349,1778928632000,-621.13564933,0.00014986,2]
[422395345,1778928632000,-500.0,0.00014986,2]
[422395344,1778928632000,-500.0,0.00014986,2]
[422395346,1778928632000,-500.0,0.00014986,2]
[422395318,1778928632000,-8055.26650475,0.00014887,2]
[422395343,1778928632000,-500.0,0.00014986,2]
[422395332,1778928632000,-171.491,0.00014936,2]
[422395348,1778928632000,-500.0,0.00014986,2]
[422395333,1778928632000,-2500.0,0.00014969,2]
[422395316,1778928632000,-350.0,0.00014876,2]
[422395315,1778928632000,-350.0,0.00014866,2]
[422395320,1778928632000,-562.8286,0.00014887,2]
[422395341,1778928632000,-500.0,0.00014984,2]
[422395321,1778928632000,-214.5294026,0.000149,2]
[422395329,1778928632000,-3400.65204069,0.000149,2]
[422395322,1778928632000,-172.81799297,0.000149,2]
[422395319,1778928632000,-200.0,0.00014887,2]
[422395326,1778928632000,-384.81723418,0.000149,2]
[422395328,1778928632000,-159.14153599,0.000149,2]
[422395324,1778928632000,-1400.0,0.000149,5]
[422395327,1778928632000,-604.57774349,0.000149,2]
[422395325,1778928632000,-270.07318632,0.000149,2]
[422395330,1778928632000,-163.75681402,0.0001492,2]
[422395331,1778928632000,-1647.883,0.00014936,2]
[422395323,1778928632000,-172.81799297,0.000149,2]
[422395353,1778928633000,-500.0,0.00014986,2]
[422395351,1778928633000,-500.0,0.00014986,2]
[422395352,1778928633000,-500.0,0.00014986,2]
[422395350,1778928633000,-500.0,0.00014986,2]
[422395355,1778928633000,-362.59063182,0.00014986,2]
[422395364,1778928633000,-39587.35409802,0.00014987,2]
[422395354,1778928633000,-500.0,0.00014986,2]
[422395356,1778928633000,-509.28723594,0.00014986,2]
[422395358,1778928633000,-500.0,0.00014986,2]
[422395357,1778928633000,-500.0,0.00014986,2]
[422395360,1778928633000,-500.0,0.00014986,2]
[422395361,1778928633000,-500.0,0.00014986,2]
[422395362,1778928633000,-734.0,0.00014987,5]
[422395363,1778928633000,-150.0,0.00014987,2]
[422395367,1778928633000,-1254.41808677,0.00014987,2]
[422395365,1778928633000,-8456.38793674,0.00014987,2]
[422395366,1778928633000,-141975.29073806,0.00014987,2]
[422395359,1778928633000,-500.0,0.00014986,2]
[422395384,1778928641000,-1540.0,0.00015,2]
[422395382,1778928641000,-151.0,0.00014997,2]
[422395383,1778928641000,-151.0,0.00014997,2]
[422395377,1778928641000,-16884.3630796,0.00014987,2]
[422395381,1778928641000,-2000.0,0.00014987,2]
[422395373,1778928641000,-2170.06850248,0.00014987,2]
[422395376,1778928641000,-12822.2090979,0.00014987,2]
[422395375,1778928641000,-84214.0788505,0.00014987,2]
[422395380,1778928641000,-6099.1099223,0.00014987,2]
[422395372,1778928641000,-199468.41578954,0.00014987,2]
[422395379,1778928641000,-115155.2134259,0.00014987,2]
[422395378,1778928641000,-1385.7833183,0.00014987,2]
[422395385,1778928641000,-151.0,0.00015,2]
[422395374,1778928641000,-1048591.8337149,0.00014987,2]
[422395389,1778928641000,-1540.0,0.00015,2]
[422395402,1778928641000,-202.35313272,0.00015,2]
[422395393,1778928641000,-1540.0,0.00015,2]
[422395403,1778928641000,-487281.75961783,0.00015,2]
[422395392,1778928641000,-1540.0,0.00015,2]
[422395394,1778928641000,-1540.0,0.00015,2]
[422395391,1778928641000,-1540.0,0.00015,2]
[422395386,1778928641000,-1540.0,0.00015,2]
[422395398,1778928641000,-1684.50576064,0.00015,2]
[422395396,1778928641000,-1540.0,0.00015,2]
[422395387,1778928641000,-1540.0,0.00015,2]
[422395390,1778928641000,-1540.0,0.00015,2]
[422395388,1778928641000,-1540.0,0.00015,2]
[422395400,1778928641000,-151.0,0.00015,2]
[422395426,1778928643000,-1233.23827767,0.00015,2]
[422395425,1778928643000,-13406.50195407,0.00015,2]
[422395424,1778928643000,-4416.33433234,0.00015,2]
[422395431,1778928645000,-272777.51075085,0.00015,2]
[422395430,1778928645000,-2113.82640578,0.00014887,2]
[422395444,1778928647000,-5203.47916436,0.00015,2]
[422395441,1778928647000,-2038.4215026,0.00015,2]
[422395442,1778928647000,-3255.56448508,0.00015,2]
[422395443,1778928647000,-1326.02114193,0.00015,2]
[422395445,1778928812000,151.82287271,0.00029673,120]
[422395446,1778928839000,267.69774823,0.00029673,120]
[422395447,1778928869000,274.85175229,0.00029673,120]
[422395448,1778928894000,160.22949867,0.00029673,120]
[422395450,1778928903000,178.0,0.00028612,120]
[422395452,1778928958000,194.65034254,0.00029648,120]
[422395453,1778929008000,222.03356365,0.00029648,120]
[422395454,1778929034000,154.12,7.054e-05,2]
[422395455,1778929035000,154.12,7.619e-05,2]
[422395456,1778929035000,154.12,8.184e-05,2]
[422395458,1778929035000,154.12,9.314e-05,2]
[422395459,1778929035000,154.12,9.879e-05,2]
[422395457,1778929035000,154.12,8.749e-05,2]
[422395463,1778929039000,166.52517273,0.00029648,120]
[422395464,1778929135000,434.97505537,0.00030136,120]
[422395477,1778929411000,243.643,0.00030136,120]
[422395478,1778929482000,46260.9926477,0.00030137,120]
[422395479,1778929483000,6451.94,0.0003013,120]
[422395481,1778929527000,6826.15163217,0.0001,2]
[422395482,1778929533000,878.99751222,9.04e-05,2]
[422395485,1778929593000,833.75,0.00030136,120]
[422395486,1778929593000,833.75,0.00030136,120]
[422395488,1778929594000,833.75,0.00030136,120]
[422395487,1778929594000,833.75,0.00030136,120]
[422395489,1778929690000,49963.48836644,0.0003013,120]
[422395496,1778929831000,-162.8,0.00010332,2]
[422395498,1778929831000,-154.12,0.00011008,2]
[422395499,1778929831000,-722.17559644,0.00011573,2]
[422395497,1778929831000,-154.12,0.00010443,2]
[422395500,1778929831000,-154.12,0.00011573,2]
[422395501,1778929831000,-203.03072901,0.0001166,2]
[422395503,1778929831000,-235.62491253,0.00012603,2]
[422395510,1778929831000,-245.6,0.00012822,2]
[422395509,1778929831000,-2000.0,0.0001281,2]